[Event "Titled Tuesday Blitz April 12 Late 2022"]
[White "Minko, Dmitry"]
[Black "Cabarkapa, Novak"]
[WhiteFideId "24188468"]
[BlackFideId "943746"]
[WhiteElo "1928"]
[BlackElo "2443"]
[Result "1-0"]
[Round "04"]
[TimeControl "180+1"]
[Date "2022.04.13"]
[WhiteClock "0:00:11"]
[BlackClock "0:00:14"]

1. e4 {[%clk 0:03:00]}  c5 {[%clk 0:02:58]} 2. Nf3 {[%clk 0:03:00]}  Nc6 {[%clk 0:02:58]} 3. d4 {[%clk 0:03:01]}  cxd4 {[%clk 0:02:59]} 4. Nxd4 {[%clk 0:03:02]}  Nf6 {[%clk 0:02:59]} 5. Nc3 {[%clk 0:03:02]}  h5 {[%clk 0:03:00]} 6. Nxc6 {[%clk 0:02:28]}  bxc6 {[%clk 0:03:01]} 7. e5 {[%clk 0:02:29]}  Ng4 {[%clk 0:03:01]} 8. e6 {[%clk 0:02:20]}  dxe6 {[%clk 0:02:51]} 9. Qxd8+ {[%clk 0:02:20]}  Kxd8 {[%clk 0:02:52]} 10. g3 {[%clk 0:02:07]}  e5 {[%clk 0:02:49]} 11. Bg2 {[%clk 0:02:06]}  Kc7 {[%clk 0:02:49]} 12. O-O {[%clk 0:02:01]}  Ba6 {[%clk 0:02:35]} 13. Re1 {[%clk 0:02:00]}  f6 {[%clk 0:02:26]} 14. h3 {[%clk 0:01:26]}  Nh6 {[%clk 0:02:25]} 15. Ne4 {[%clk 0:01:25]}  e6 {[%clk 0:02:18]} 16. Bd2 {[%clk 0:01:26]}  Nf7 {[%clk 0:01:44]} 17. Ba5+ {[%clk 0:01:25]}  Kc8 {[%clk 0:01:45]} 18. Rad1 {[%clk 0:01:13]}  h4 {[%clk 0:01:38]} 19. b4 {[%clk 0:00:46]}  hxg3 {[%clk 0:01:27]} 20. Nxg3 {[%clk 0:00:42]}  Bb7 {[%clk 0:01:11]} 21. Re3 {[%clk 0:00:34]}  Be7 {[%clk 0:00:27]} 22. Red3 {[%clk 0:00:31]}  Bd8 {[%clk 0:00:20]} 23. Rd7 {[%clk 0:00:22]}  Bxa5 {[%clk 0:00:20]} 24. bxa5 {[%clk 0:00:21]}  Rd8 {[%clk 0:00:20]} 25. Rxd8+ {[%clk 0:00:16]}  Nxd8 {[%clk 0:00:21]} 26. Ne4 {[%clk 0:00:17]}  Kc7 {[%clk 0:00:21]} 27. Nc5 {[%clk 0:00:16]}  Bc8 {[%clk 0:00:21]} 28. h4 {[%clk 0:00:11]}  Rb8 {[%clk 0:00:21]} 29. Rd3 {[%clk 0:00:11]}  Rb4 {[%clk 0:00:22]} 30. Rg3 {[%clk 0:00:10]}  Rxh4 {[%clk 0:00:20]} 31. Rxg7+ {[%clk 0:00:10]}  Kd6 {[%clk 0:00:20]} 32. Ne4+ {[%clk 0:00:10]}  Kd5 {[%clk 0:00:16]} 33. Rg8 {[%clk 0:00:08]}  Nf7 {[%clk 0:00:11]} 34. Nxf6+ {[%clk 0:00:08]}  Kd4 {[%clk 0:00:09]} 35. Rxc8 {[%clk 0:00:08]}  e4 {[%clk 0:00:05]} 36. Nxe4 {[%clk 0:00:08]}  c5 {[%clk 0:00:03]} 37. Nxc5 {[%clk 0:00:06]}  Rg4 {[%clk 0:00:03]} 38. Nxe6+ {[%clk 0:00:06]}  Ke5 {[%clk 0:00:03]} 39. Nc5 {[%clk 0:00:05]}  Ng5 {[%clk 0:00:04]} 40. Nd3+ {[%clk 0:00:05]}  Kd6 {[%clk 0:00:04]} 41. Kf1 {[%clk 0:00:06]}  Rh4 {[%clk 0:00:03]} 42. Rg8 {[%clk 0:00:06]}  Ne6 {[%clk 0:00:03]} 43. Rg6 {[%clk 0:00:06]}  Ke7 {[%clk 0:00:03]} 44. Rg3 {[%clk 0:00:04]}  Nd4 {[%clk 0:00:04]} 45. Re3+ {[%clk 0:00:04]}  Kd6 {[%clk 0:00:04]} 46. c3 {[%clk 0:00:05]}  Nb5 {[%clk 0:00:04]} 47. Re5 {[%clk 0:00:05]}  Nxc3 {[%clk 0:00:04]} 48. Rc5 {[%clk 0:00:04]}  Rd4 {[%clk 0:00:04]} 49. Rxc3 {[%clk 0:00:04]}  a6 {[%clk 0:00:04]} 50. Rc6+ {[%clk 0:00:03]}  Kd7 {[%clk 0:00:05]} 51. Nc5+ {[%clk 0:00:04]}  Ke7 {[%clk 0:00:05]} 52. Rxa6 {[%clk 0:00:05]}  Rd8 {[%clk 0:00:04]} 53. Ra7+ {[%clk 0:00:05]}  Kf6 {[%clk 0:00:05]} 54. a6 {[%clk 0:00:05]}  Ke5 {[%clk 0:00:06]} 55. Ne4 {[%clk 0:00:06]}  Kf4 {[%clk 0:00:06]} 56. Ng3 {[%clk 0:00:07]}  Ke5 {[%clk 0:00:06]} 57. Ke2 {[%clk 0:00:07]}  Re8 {[%clk 0:00:06]} 58. Rb7 {[%clk 0:00:07]}  Kd6+ {[%clk 0:00:06]} 59. Kd2 {[%clk 0:00:08]}  Kc5 {[%clk 0:00:06]} 60. Rb3 {[%clk 0:00:09]}  Ra8 {[%clk 0:00:07]} 61. Bxa8 {[%clk 0:00:08]}  Kd4 {[%clk 0:00:07]} 62. Be4 {[%clk 0:00:08]}  Ke5 {[%clk 0:00:08]} 63. a7 {[%clk 0:00:09]}  Kf4 {[%clk 0:00:09]} 64. a8=Q {[%clk 0:00:09]}  Kg5 {[%clk 0:00:10]} 65. Qf8 {[%clk 0:00:08]}  Kh4 {[%clk 0:00:11]} 66. Qf3 {[%clk 0:00:08]}  Kh3 {[%clk 0:00:12]} 67. Qh1+ {[%clk 0:00:08]}  Kg4 {[%clk 0:00:12]} 68. Bf3+ {[%clk 0:00:09]}  Kf4 {[%clk 0:00:13]} 69. Qh4+ {[%clk 0:00:09]}  Ke5 {[%clk 0:00:13]} 70. Qe4+ {[%clk 0:00:10]}  Kf6 {[%clk 0:00:13]} 71. Rb6+ {[%clk 0:00:10]}  Kg5 {[%clk 0:00:14]} 72. Qg6+ {[%clk 0:00:11]}  Kf4 {[%clk 0:00:14]} 73. Qf5# {[%clk 0:00:11]} 1-0


[Site "https://www.chess.com"]

[Event "Titled Tuesday Blitz April 12 Late 2022"]
[White "Molenda, Marcin"]
[Black "Alekseenko, Kirill"]
[WhiteFideId "1173065"]
[BlackFideId "4135539"]
[WhiteElo "2067"]
[BlackElo "2682"]
[Result "0-1"]
[Round "04"]
[TimeControl "180+1"]
[Date "2022.04.12"]
[WhiteClock "0:00:11"]
[BlackClock "0:00:34"]

1. d4 {[%clk 0:03:00]}  d5 {[%clk 0:02:59]} 2. c4 {[%clk 0:03:00]}  dxc4 {[%clk 0:03:00]} 3. e3 {[%clk 0:02:58]}  e5 {[%clk 0:03:00]} 4. Bxc4 {[%clk 0:02:58]}  Nc6 {[%clk 0:03:00]} 5. Nf3 {[%clk 0:02:57]}  e4 {[%clk 0:03:01]} 6. Nfd2 {[%clk 0:02:51]}  Qg5 {[%clk 0:03:01]} 7. Bf1 {[%clk 0:02:42]}  Nf6 {[%clk 0:03:01]} 8. h4 {[%clk 0:02:41]}  Qg6 {[%clk 0:03:00]} 9. Nc3 {[%clk 0:02:40]}  h5 {[%clk 0:02:58]} 10. Qa4 {[%clk 0:02:30]}  Bd7 {[%clk 0:02:54]} 11. Nb5 {[%clk 0:02:15]}  Bd6 {[%clk 0:02:50]} 12. Nxd6+ {[%clk 0:02:15]}  cxd6 {[%clk 0:02:51]} 13. Qa3 {[%clk 0:02:14]}  Ng4 {[%clk 0:02:31]} 14. Nc4 {[%clk 0:02:08]}  O-O {[%clk 0:02:25]} 15. Qxd6 {[%clk 0:02:06]}  Be6 {[%clk 0:02:22]} 16. Bd2 {[%clk 0:01:53]}  Rfd8 {[%clk 0:02:10]} 17. Qf4 {[%clk 0:01:51]}  Rd5 {[%clk 0:01:55]} 18. Nd6 {[%clk 0:01:30]}  Rd8 {[%clk 0:01:40]} 19. Nxe4 {[%clk 0:01:25]}  Rf5 {[%clk 0:01:40]} 20. Qg3 {[%clk 0:01:25]}  Bd5 {[%clk 0:01:06]} 21. f3 {[%clk 0:01:22]}  Bxe4 {[%clk 0:01:03]} 22. fxe4 {[%clk 0:01:22]}  Rf2 {[%clk 0:00:57]} 23. Bd3 {[%clk 0:01:11]}  Nce5 {[%clk 0:00:50]} 24. Be2 {[%clk 0:00:41]}  Qxe4 {[%clk 0:00:50]} 25. Rf1 {[%clk 0:00:34]}  Rxe2+ {[%clk 0:00:40]} 26. Kxe2 {[%clk 0:00:34]}  Rxd4 {[%clk 0:00:39]} 27. Rad1 {[%clk 0:00:26]}  Nc4 {[%clk 0:00:38]} 28. Bc3 {[%clk 0:00:23]}  Qc2+ {[%clk 0:00:37]} 29. Kf3 {[%clk 0:00:23]}  Nce5+ {[%clk 0:00:33]} 30. Qxe5 {[%clk 0:00:11]}  Nxe5+ {[%clk 0:00:34]} 31. Kg3 {[%clk 0:00:11]}  Rg4+ {[%clk 0:00:33]} 32. Kh2 {[%clk 0:00:11]}  Qxg2# {[%clk 0:00:34]} 0-1


[Site "https://www.chess.com"]

[Event "Titled Tuesday Blitz April 12 Late 2022"]
[White "Moussard, Jules"]
[Black "Bilan, Danila"]
[WhiteFideId "642908"]
[BlackFideId "24161918"]
[WhiteElo "2589"]
[BlackElo "2164"]
[Result "1-0"]
[Round "04"]
[TimeControl "180+1"]
[Date "2022.04.12"]
[WhiteClock "0:01:12"]
[BlackClock "0:00:01"]

1. f4 {[%clk 0:03:00]}  d5 {[%clk 0:02:57]} 2. Nf3 {[%clk 0:03:01]}  Nf6 {[%clk 0:02:56]} 3. g3 {[%clk 0:03:01]}  g6 {[%clk 0:02:52]} 4. Bg2 {[%clk 0:03:02]}  Bg7 {[%clk 0:02:53]} 5. O-O {[%clk 0:03:02]}  O-O {[%clk 0:02:53]} 6. d3 {[%clk 0:03:03]}  c6 {[%clk 0:02:47]} 7. Nc3 {[%clk 0:03:02]}  Nbd7 {[%clk 0:02:16]} 8. e4 {[%clk 0:03:02]}  dxe4 {[%clk 0:02:11]} 9. dxe4 {[%clk 0:03:03]}  e5 {[%clk 0:02:09]} 10. f5 {[%clk 0:02:58]}  Qc7 {[%clk 0:01:59]} 11. Bg5 {[%clk 0:02:49]}  Nc5 {[%clk 0:01:33]} 12. Qe2 {[%clk 0:02:44]}  b6 {[%clk 0:01:32]} 13. Rfd1 {[%clk 0:02:26]}  Ba6 {[%clk 0:01:28]} 14. Qe1 {[%clk 0:02:25]}  h6 {[%clk 0:01:09]} 15. Bxf6 {[%clk 0:02:06]}  Bxf6 {[%clk 0:01:09]} 16. b4 {[%clk 0:02:07]}  Nb7 {[%clk 0:00:59]} 17. a4 {[%clk 0:02:05]}  Bc4 {[%clk 0:00:58]} 18. Nd2 {[%clk 0:02:05]}  Nd6 {[%clk 0:00:46]} 19. Nxc4 {[%clk 0:01:59]}  Nxc4 {[%clk 0:00:47]} 20. Qe2 {[%clk 0:01:59]}  b5 {[%clk 0:00:37]} 21. axb5 {[%clk 0:01:59]}  cxb5 {[%clk 0:00:37]} 22. Nd5 {[%clk 0:01:59]}  Qc6 {[%clk 0:00:29]} 23. fxg6 {[%clk 0:01:47]}  fxg6 {[%clk 0:00:23]} 24. Qg4 {[%clk 0:01:42]}  Kg7 {[%clk 0:00:08]} 25. Nc7 {[%clk 0:01:33]}  Rad8 {[%clk 0:00:06]} 26. Ne6+ {[%clk 0:01:32]}  Kf7 {[%clk 0:00:06]} 27. Nxd8+ {[%clk 0:01:32]}  Rxd8 {[%clk 0:00:06]} 28. Rxa7+ {[%clk 0:01:31]}  Kf8 {[%clk 0:00:02]} 29. Rxd8+ {[%clk 0:01:29]}  Bxd8 {[%clk 0:00:03]} 30. Kh1 {[%clk 0:01:24]}  Be7 {[%clk 0:00:01]} 31. c3 {[%clk 0:01:20]}  Qd6 {[%clk 0:00:01]} 32. Qc8+ {[%clk 0:01:16]}  Kg7 {[%clk 0:00:01]} 33. Qd7 {[%clk 0:01:12]} 1-0


[Site "https://www.chess.com"]

[Event "Titled Tuesday Blitz April 12 Late 2022"]
[White "Nakamura, Hikaru"]
[Black "Indjic, Aleksandar"]
[WhiteFideId "2016192"]
[BlackFideId "911925"]
[WhiteElo "2850"]
[BlackElo "2616"]
[Result "1-0"]
[Round "04"]
[TimeControl "180+1"]
[Date "2022.04.12"]
[WhiteClock "0:01:14"]
[BlackClock "0:00:12"]

1. Nf3 {[%clk 0:03:00]}  c5 {[%clk 0:02:56]} 2. b3 {[%clk 0:03:00]}  d6 {[%clk 0:02:54]} 3. Bb2 {[%clk 0:02:58]}  e5 {[%clk 0:02:54]} 4. e3 {[%clk 0:02:58]}  f5 {[%clk 0:02:53]} 5. Bb5+ {[%clk 0:02:56]}  Bd7 {[%clk 0:02:48]} 6. Bxd7+ {[%clk 0:02:56]}  Qxd7 {[%clk 0:02:48]} 7. O-O {[%clk 0:02:55]}  Nf6 {[%clk 0:02:47]} 8. Ne1 {[%clk 0:02:54]}  Nc6 {[%clk 0:02:46]} 9. f4 {[%clk 0:02:54]}  Be7 {[%clk 0:02:44]} 10. c4 {[%clk 0:02:53]}  Rg8 {[%clk 0:02:34]} 11. Nc3 {[%clk 0:02:47]}  Qe6 {[%clk 0:02:31]} 12. Nf3 {[%clk 0:02:40]}  e4 {[%clk 0:02:00]} 13. Ng5 {[%clk 0:02:39]}  Qd7 {[%clk 0:01:59]} 14. d3 {[%clk 0:02:38]}  h6 {[%clk 0:01:58]} 15. Nh3 {[%clk 0:02:37]}  exd3 {[%clk 0:01:33]} 16. Qxd3 {[%clk 0:02:38]}  O-O-O {[%clk 0:01:33]} 17. Rad1 {[%clk 0:02:38]}  Qe6 {[%clk 0:01:28]} 18. Nd5 {[%clk 0:02:33]}  Ne4 {[%clk 0:01:26]} 19. Nf2 {[%clk 0:02:33]}  Kb8 {[%clk 0:01:17]} 20. Nxe4 {[%clk 0:02:32]}  fxe4 {[%clk 0:01:17]} 21. Qc2 {[%clk 0:02:29]}  Bf6 {[%clk 0:01:00]} 22. f5 {[%clk 0:02:21]}  Qf7 {[%clk 0:01:00]} 23. Nxf6 {[%clk 0:02:15]}  gxf6 {[%clk 0:01:01]} 24. Qxe4 {[%clk 0:02:15]}  Ne5 {[%clk 0:00:34]} 25. Rd2 {[%clk 0:02:01]}  Rg4 {[%clk 0:00:32]} 26. Rf4 {[%clk 0:02:01]}  Rgg8 {[%clk 0:00:31]} 27. Qd5 {[%clk 0:01:54]}  Qe7 {[%clk 0:00:29]} 28. Qe6 {[%clk 0:01:50]}  Qg7 {[%clk 0:00:29]} 29. Qd5 {[%clk 0:01:46]}  h5 {[%clk 0:00:23]} 30. Rff2 {[%clk 0:01:41]}  Qe7 {[%clk 0:00:22]} 31. Qe6 {[%clk 0:01:40]}  Qg7 {[%clk 0:00:19]} 32. Rxd6 {[%clk 0:01:27]}  Nf3+ {[%clk 0:00:16]} 33. Kh1 {[%clk 0:01:19]}  Nxh2 {[%clk 0:00:14]} 34. Bxf6 {[%clk 0:01:15]}  Qg3 {[%clk 0:00:12]} 35. Rxd8+ {[%clk 0:01:14]}  Rxd8 {[%clk 0:00:11]} 36. Be5+ {[%clk 0:01:14]}  Ka8 {[%clk 0:00:12]} 37. Bxg3 {[%clk 0:01:14]} 1-0


[Site "https://www.chess.com"]

[Event "Titled Tuesday Blitz April 12 Late 2022"]
[White "Naroditsky, Daniel"]
[Black "Vasquez Schroeder, Rodrigo"]
[WhiteFideId "2026961"]
[BlackFideId "3400042"]
[WhiteElo "2608"]
[BlackElo "2561"]
[Result "1/2-1/2"]
[Round "04"]
[TimeControl "180+1"]
[Date "2022.04.12"]
[WhiteClock "0:00:15"]
[BlackClock "0:00:29"]

1. Nf3 {[%clk 0:03:00]}  c5 {[%clk 0:02:52]} 2. c4 {[%clk 0:02:58]}  Nf6 {[%clk 0:02:51]} 3. Nc3 {[%clk 0:02:58]}  e6 {[%clk 0:02:52]} 4. d4 {[%clk 0:02:54]}  cxd4 {[%clk 0:02:52]} 5. Nxd4 {[%clk 0:02:55]}  Bb4 {[%clk 0:02:52]} 6. Bd2 {[%clk 0:02:43]}  Nc6 {[%clk 0:02:49]} 7. Nc2 {[%clk 0:02:40]}  Bc5 {[%clk 0:02:41]} 8. Be3 {[%clk 0:02:12]}  Bxe3 {[%clk 0:02:19]} 9. Nxe3 {[%clk 0:02:13]}  d6 {[%clk 0:02:10]} 10. g3 {[%clk 0:02:12]}  O-O {[%clk 0:02:10]} 11. Bg2 {[%clk 0:02:13]}  Qe7 {[%clk 0:02:04]} 12. O-O {[%clk 0:02:12]}  Rd8 {[%clk 0:02:05]} 13. Rc1 {[%clk 0:02:01]}  Bd7 {[%clk 0:02:04]} 14. Qb3 {[%clk 0:01:58]}  Be8 {[%clk 0:01:59]} 15. Rfd1 {[%clk 0:01:57]}  Rac8 {[%clk 0:01:59]} 16. Qa3 {[%clk 0:01:58]}  a6 {[%clk 0:01:53]} 17. Na4 {[%clk 0:01:39]}  Ne5 {[%clk 0:01:45]} 18. Nb6 {[%clk 0:01:38]}  Rc7 {[%clk 0:01:45]} 19. b4 {[%clk 0:01:22]}  Bc6 {[%clk 0:01:42]} 20. f3 {[%clk 0:01:18]}  d5 {[%clk 0:01:29]} 21. cxd5 {[%clk 0:01:09]}  Bxd5 {[%clk 0:01:29]} 22. Nbxd5 {[%clk 0:01:03]}  Nxd5 {[%clk 0:01:21]} 23. Nxd5 {[%clk 0:01:04]}  exd5 {[%clk 0:01:20]} 24. Rxc7 {[%clk 0:00:51]}  Qxc7 {[%clk 0:01:19]} 25. Qe3 {[%clk 0:00:52]}  Nc6 {[%clk 0:01:11]} 26. a3 {[%clk 0:00:50]}  d4 {[%clk 0:01:09]} 27. Qf2 {[%clk 0:00:51]}  Qb6 {[%clk 0:01:00]} 28. f4 {[%clk 0:00:49]}  a5 {[%clk 0:00:55]} 29. bxa5 {[%clk 0:00:42]}  Nxa5 {[%clk 0:00:49]} 30. Be4 {[%clk 0:00:37]}  g6 {[%clk 0:00:41]} 31. f5 {[%clk 0:00:35]}  Kg7 {[%clk 0:00:37]} 32. fxg6 {[%clk 0:00:31]}  hxg6 {[%clk 0:00:36]} 33. Rb1 {[%clk 0:00:31]}  Qe6 {[%clk 0:00:31]} 34. Bd3 {[%clk 0:00:32]}  Rd7 {[%clk 0:00:29]} 35. h4 {[%clk 0:00:30]}  Nc4 {[%clk 0:00:29]} 36. h5 {[%clk 0:00:25]}  Ne3 {[%clk 0:00:29]} 37. Qf3 {[%clk 0:00:15]} 1/2-1/2


[Site "https://www.chess.com"]

[Event "Titled Tuesday Blitz April 12 Late 2022"]
[White "Nazaretyan, Tigran"]
[Black "Friedel, Tom"]
[WhiteFideId "24162345"]
[BlackFideId "2002108"]
[WhiteElo "2225"]
[BlackElo "2402"]
[Result "1-0"]
[Round "04"]
[TimeControl "180+1"]
[Date "2022.04.13"]
[WhiteClock "0:00:41"]
[BlackClock "0:00:12"]

1. d4 {[%clk 0:03:00]}  d5 {[%clk 0:02:58]} 2. c4 {[%clk 0:03:00]}  e6 {[%clk 0:02:59]} 3. Nf3 {[%clk 0:03:00]}  Nf6 {[%clk 0:02:59]} 4. Nc3 {[%clk 0:03:00]}  Be7 {[%clk 0:02:59]} 5. Bf4 {[%clk 0:02:59]}  Nbd7 {[%clk 0:02:55]} 6. e3 {[%clk 0:02:59]}  b6 {[%clk 0:02:53]} 7. cxd5 {[%clk 0:02:47]}  Nxd5 {[%clk 0:02:47]} 8. Nxd5 {[%clk 0:02:45]}  exd5 {[%clk 0:02:48]} 9. Bd3 {[%clk 0:02:45]}  O-O {[%clk 0:02:45]} 10. O-O {[%clk 0:02:43]}  Bb7 {[%clk 0:02:44]} 11. Qc2 {[%clk 0:02:43]}  c5 {[%clk 0:02:24]} 12. Bxh7+ {[%clk 0:02:42]}  Kh8 {[%clk 0:02:25]} 13. Bf5 {[%clk 0:02:36]}  Nf6 {[%clk 0:02:22]} 14. Ne5 {[%clk 0:02:33]}  Kg8 {[%clk 0:02:19]} 15. Qe2 {[%clk 0:02:27]}  Re8 {[%clk 0:02:03]} 16. Qf3 {[%clk 0:02:20]}  Bd6 {[%clk 0:02:01]} 17. Rfd1 {[%clk 0:02:13]}  cxd4 {[%clk 0:01:59]} 18. exd4 {[%clk 0:02:12]}  Re7 {[%clk 0:01:56]} 19. Re1 {[%clk 0:02:08]}  Rc7 {[%clk 0:01:54]} 20. Bg5 {[%clk 0:02:05]}  Be7 {[%clk 0:01:47]} 21. Qh3 {[%clk 0:02:00]}  Bc8 {[%clk 0:01:35]} 22. Bxf6 {[%clk 0:02:00]}  Bxf5 {[%clk 0:01:30]} 23. Bxe7 {[%clk 0:01:59]}  Qc8 {[%clk 0:01:14]} 24. Qh4 {[%clk 0:01:46]}  f6 {[%clk 0:01:10]} 25. Bxf6 {[%clk 0:01:38]}  gxf6 {[%clk 0:01:05]} 26. Qxf6 {[%clk 0:01:39]}  Qf8 {[%clk 0:00:45]} 27. Qxf8+ {[%clk 0:01:27]}  Kxf8 {[%clk 0:00:46]} 28. Rac1 {[%clk 0:01:26]}  Rac8 {[%clk 0:00:46]} 29. Rxc7 {[%clk 0:01:23]}  Rxc7 {[%clk 0:00:47]} 30. g4 {[%clk 0:01:23]}  Bc8 {[%clk 0:00:43]} 31. Re2 {[%clk 0:01:22]}  Rc1+ {[%clk 0:00:41]} 32. Kg2 {[%clk 0:01:21]}  Rd1 {[%clk 0:00:42]} 33. Rc2 {[%clk 0:01:08]}  Be6 {[%clk 0:00:39]} 34. Rc6 {[%clk 0:01:03]}  Ke7 {[%clk 0:00:37]} 35. h3 {[%clk 0:00:54]}  Rxd4 {[%clk 0:00:35]} 36. Rxb6 {[%clk 0:00:54]}  Rxg4+ {[%clk 0:00:27]} 37. hxg4 {[%clk 0:00:54]}  axb6 {[%clk 0:00:27]} 38. f4 {[%clk 0:00:51]}  d4 {[%clk 0:00:27]} 39. b3 {[%clk 0:00:51]}  Bd5+ {[%clk 0:00:27]} 40. Kf2 {[%clk 0:00:50]}  Kf6 {[%clk 0:00:27]} 41. Ke2 {[%clk 0:00:50]}  Be4 {[%clk 0:00:27]} 42. Nc4 {[%clk 0:00:48]}  b5 {[%clk 0:00:23]} 43. Nd2 {[%clk 0:00:46]}  Bc6 {[%clk 0:00:22]} 44. Kd3 {[%clk 0:00:45]}  Bd7 {[%clk 0:00:20]} 45. f5 {[%clk 0:00:44]}  Kg5 {[%clk 0:00:21]} 46. Ne4+ {[%clk 0:00:42]}  Kf4 {[%clk 0:00:16]} 47. Kxd4 {[%clk 0:00:42]}  Bc6 {[%clk 0:00:16]} 48. f6 {[%clk 0:00:41]}  Be8 {[%clk 0:00:12]} 49. g5 {[%clk 0:00:41]}  Kf5 {[%clk 0:00:12]} 50. Nd6+ {[%clk 0:00:41]}  Kxg5 {[%clk 0:00:11]} 51. Nxe8 {[%clk 0:00:41]}  Kg6 {[%clk 0:00:11]} 52. Ke5 {[%clk 0:00:41]}  Kf7 {[%clk 0:00:12]} 53. Nd6+ {[%clk 0:00:41]} 1-0


[Site "https://www.chess.com"]

[Event "Titled Tuesday Blitz April 12 Late 2022"]
[White "Noboa Silva, Kevin"]
[Black "Papasimakopoulos, Alexandros"]
[WhiteFideId "3618471"]
[BlackFideId "4244125"]
[WhiteElo "2172"]
[BlackElo "2340"]
[Result "0-1"]
[Round "04"]
[TimeControl "180+1"]
[Date "2022.04.12"]
[WhiteClock "0:00:01"]
[BlackClock "0:00:22"]

1. d4 {[%clk 0:03:00]}  e6 {[%clk 0:02:52]} 2. c4 {[%clk 0:02:59]}  Nf6 {[%clk 0:02:52]} 3. Nc3 {[%clk 0:02:59]}  Bb4 {[%clk 0:02:52]} 4. e3 {[%clk 0:02:59]}  O-O {[%clk 0:02:52]} 5. Bd3 {[%clk 0:02:59]}  d5 {[%clk 0:02:51]} 6. a3 {[%clk 0:03:00]}  Be7 {[%clk 0:02:50]} 7. Nf3 {[%clk 0:02:58]}  Nbd7 {[%clk 0:02:48]} 8. O-O {[%clk 0:02:54]}  a6 {[%clk 0:02:49]} 9. b4 {[%clk 0:02:53]}  dxc4 {[%clk 0:02:49]} 10. Bxc4 {[%clk 0:02:53]}  b6 {[%clk 0:02:48]} 11. e4 {[%clk 0:02:53]}  Bb7 {[%clk 0:02:47]} 12. e5 {[%clk 0:02:52]}  Ne4 {[%clk 0:02:38]} 13. Nxe4 {[%clk 0:02:47]}  Bxe4 {[%clk 0:02:39]} 14. Re1 {[%clk 0:02:47]}  Bb7 {[%clk 0:02:33]} 15. Bb2 {[%clk 0:02:35]}  a5 {[%clk 0:02:31]} 16. b5 {[%clk 0:02:31]}  c6 {[%clk 0:02:31]} 17. bxc6 {[%clk 0:02:21]}  Bxc6 {[%clk 0:02:32]} 18. Rc1 {[%clk 0:02:21]}  b5 {[%clk 0:02:30]} 19. Bd3 {[%clk 0:02:19]}  Rc8 {[%clk 0:02:26]} 20. Qe2 {[%clk 0:02:11]}  Qb6 {[%clk 0:02:24]} 21. h4 {[%clk 0:02:02]}  Rfd8 {[%clk 0:02:20]} 22. Bb1 {[%clk 0:01:53]}  Nf8 {[%clk 0:02:18]} 23. h5 {[%clk 0:01:51]}  h6 {[%clk 0:02:17]} 24. Nh2 {[%clk 0:01:48]}  b4 {[%clk 0:02:13]} 25. Ng4 {[%clk 0:01:39]}  bxa3 {[%clk 0:02:07]} 26. Bc3 {[%clk 0:01:39]}  Bg5 {[%clk 0:02:06]} 27. Rcd1 {[%clk 0:01:12]}  Ba4 {[%clk 0:01:56]} 28. Rd3 {[%clk 0:00:41]}  Bb5 {[%clk 0:01:46]} 29. Bd2 {[%clk 0:00:41]}  Bxd3 {[%clk 0:01:41]} 30. Bxd3 {[%clk 0:00:40]}  Qxd4 {[%clk 0:01:35]} 31. Bxg5 {[%clk 0:00:40]}  hxg5 {[%clk 0:01:36]} 32. Ba6 {[%clk 0:00:33]}  Ra8 {[%clk 0:01:29]} 33. h6 {[%clk 0:00:32]}  Rxa6 {[%clk 0:01:26]} 34. hxg7 {[%clk 0:00:32]}  Kxg7 {[%clk 0:01:26]} 35. Qf3 {[%clk 0:00:17]}  Qf4 {[%clk 0:01:23]} 36. Qh3 {[%clk 0:00:17]}  Nh7 {[%clk 0:01:02]} 37. Qh6+ {[%clk 0:00:16]}  Kg8 {[%clk 0:01:02]} 38. Nf6+ {[%clk 0:00:13]}  Nxf6 {[%clk 0:01:00]} 39. exf6 {[%clk 0:00:13]}  Qxf6 {[%clk 0:00:58]} 40. Qxf6 {[%clk 0:00:13]}  Rd5 {[%clk 0:00:54]} 41. Qc3 {[%clk 0:00:10]}  Ra8 {[%clk 0:00:50]} 42. Qxa3 {[%clk 0:00:10]}  a4 {[%clk 0:00:50]} 43. g3 {[%clk 0:00:10]}  Rb5 {[%clk 0:00:46]} 44. Ra1 {[%clk 0:00:10]}  Rba5 {[%clk 0:00:45]} 45. Kg2 {[%clk 0:00:08]}  R8a7 {[%clk 0:00:40]} 46. Ra2 {[%clk 0:00:09]}  Ra8 {[%clk 0:00:41]} 47. Qb4 {[%clk 0:00:09]}  a3 {[%clk 0:00:41]} 48. g4 {[%clk 0:00:08]}  Ra4 {[%clk 0:00:41]} 49. Qb7 {[%clk 0:00:06]}  Rxg4+ {[%clk 0:00:41]} 50. Kh3 {[%clk 0:00:07]}  Rh4+ {[%clk 0:00:41]} 51. Kg3 {[%clk 0:00:07]}  Rha4 {[%clk 0:00:42]} 52. Qc6 {[%clk 0:00:05]}  Kg7 {[%clk 0:00:42]} 53. Qc3+ {[%clk 0:00:05]}  Kg6 {[%clk 0:00:41]} 54. f3 {[%clk 0:00:05]}  f6 {[%clk 0:00:40]} 55. Kf2 {[%clk 0:00:05]}  R4a5 {[%clk 0:00:39]} 56. Qc7 {[%clk 0:00:04]}  R5a7 {[%clk 0:00:38]} 57. Qc6 {[%clk 0:00:04]}  Ra6 {[%clk 0:00:38]} 58. Qd7 {[%clk 0:00:05]}  e5 {[%clk 0:00:35]} 59. Ke3 {[%clk 0:00:04]}  R6a7 {[%clk 0:00:34]} 60. Qe6 {[%clk 0:00:04]}  Ra6 {[%clk 0:00:33]} 61. Qd5 {[%clk 0:00:04]}  Ra4 {[%clk 0:00:31]} 62. Qb7 {[%clk 0:00:03]}  R4a6 {[%clk 0:00:26]} 63. Qb3 {[%clk 0:00:01]}  R6a7 {[%clk 0:00:22]} 64. Qc2+ {[%clk 0:00:01]}  Kg7 {[%clk 0:00:22]} 0-1


[Site "https://www.chess.com"]

[Event "Titled Tuesday Blitz April 12 Late 2022"]
[White "Pakleza, Zbigniew"]
[Black "Shapiro, David"]
[WhiteFideId "1119290"]
[BlackFideId "24133523"]
[WhiteElo "2467"]
[BlackElo "2320"]
[Result "1-0"]
[Round "04"]
[TimeControl "180+1"]
[Date "2022.04.12"]
[WhiteClock "0:00:53"]
[BlackClock "0:00:04"]

1. d4 {[%clk 0:03:00]}  d5 {[%clk 0:02:59]} 2. Bf4 {[%clk 0:03:01]}  c5 {[%clk 0:02:58]} 3. c3 {[%clk 0:03:00]}  Nc6 {[%clk 0:02:58]} 4. e3 {[%clk 0:03:00]}  Nf6 {[%clk 0:02:58]} 5. Nd2 {[%clk 0:03:00]}  Bf5 {[%clk 0:02:55]} 6. Ngf3 {[%clk 0:02:59]}  e6 {[%clk 0:02:52]} 7. Bb5 {[%clk 0:02:50]}  Bd6 {[%clk 0:02:51]} 8. Qa4 {[%clk 0:02:44]}  Qc7 {[%clk 0:02:31]} 9. Bxd6 {[%clk 0:02:32]}  Qxd6 {[%clk 0:02:32]} 10. Bxc6+ {[%clk 0:02:27]}  Qxc6 {[%clk 0:02:30]} 11. Qxc6+ {[%clk 0:02:25]}  bxc6 {[%clk 0:02:31]} 12. dxc5 {[%clk 0:02:26]}  Nd7 {[%clk 0:02:27]} 13. b4 {[%clk 0:02:23]}  e5 {[%clk 0:02:27]} 14. Nb3 {[%clk 0:02:20]}  Ke7 {[%clk 0:02:20]} 15. Na5 {[%clk 0:02:14]}  Rhc8 {[%clk 0:02:15]} 16. Ke2 {[%clk 0:02:06]}  Rab8 {[%clk 0:02:07]} 17. h3 {[%clk 0:01:57]}  f6 {[%clk 0:01:57]} 18. Rhc1 {[%clk 0:01:49]}  g5 {[%clk 0:01:53]} 19. a3 {[%clk 0:01:34]}  h5 {[%clk 0:01:40]} 20. c4 {[%clk 0:01:28]}  g4 {[%clk 0:01:39]} 21. Nh4 {[%clk 0:01:25]}  Be6 {[%clk 0:01:38]} 22. hxg4 {[%clk 0:01:24]}  hxg4 {[%clk 0:01:37]} 23. Rc3 {[%clk 0:01:03]}  Kf7 {[%clk 0:01:07]} 24. Rd1 {[%clk 0:01:03]}  f5 {[%clk 0:00:58]} 25. Nxc6 {[%clk 0:00:52]}  Rxc6 {[%clk 0:00:13]} 26. cxd5 {[%clk 0:00:52]}  Bxd5 {[%clk 0:00:10]} 27. Rxd5 {[%clk 0:00:53]}  Ke6 {[%clk 0:00:06]} 28. Rcd3 {[%clk 0:00:53]}  Rb7 {[%clk 0:00:04]} 1-0


[Site "https://www.chess.com"]